[Event "EYCC O18-ch 2024"]
[Site "Prague"]
[Date "2024.08.30"]
[Round "8.7"]
[White "Ribeiro, Gustavo"]
[Black "Ribera Veganzones, Serni"]
[Result "0-1"]
[ECO "A13"]
[WhiteElo "2183"]
[BlackElo "2309"]
[Annotator "RC"]
[PlyCount "78"]
[EventDate "2024.08.19"]
[EventType "swiss"]
[EventCountry "CZE"]
[SourceTitle "playchess.com"]
[Source "ChessBase"]
[SourceQuality "1"]
[TimeControl "5400+30"]

1. c4 e6 2. Nf3 d5 3. e3 Nf6 4. b3 dxc4 5. Bxc4 c5 6. O-O a6 7. Bb2 b5 8. Be2 Bb7 9. d4 Nbd7 10. Nbd2 Be7 11. dxc5 Nxc5 12. Nd4 O-O 13. Bf3 Qb6 14. Bxb7 Qxb7 15. Qe2 Rac8 16. Rac1 Rfd8 17. Rfd1 h6 18. h3 Nd5 19. Nf1 Ne4 20. Qf3 Rxc1 21. Rxc1 Nc5 22. Qe2 Nb4 23. Bc3 Nbd3 24. Rd1 b4 25. Ba1 e5 26. Nf5 Bf8 27. Qg4 Kh7 28. N1g3 g6 29. e4 Rd7 30. Ne3 h5 31. Qf3 h4 32. Ngf5 Qxe4 33. Qxe4 Nxe4 34. Nxh4 Nexf2 35. Rf1 Bc5 36. Nc4 Ng4+ 37. Kh1 Ndf2+ 38. Kg1 Ne4+ 39. Kh1 Ng3# 0-1

[Event "EYCC O18-ch 2024"]
[Site "Prague"]
[Date "2024.08.30"]
[Round "8.8"]
[White "Davtyan, Arsen"]
[Black "Koutlas, Nikolaos"]
[Result "1-0"]
[ECO "B90"]
[WhiteElo "2402"]
[BlackElo "2322"]
[Annotator "RC"]
[PlyCount "61"]
[EventDate "2024.08.19"]
[EventType "swiss"]
[EventCountry "CZE"]
[SourceTitle "playchess.com"]
[Source "ChessBase"]
[SourceQuality "1"]
[TimeControl "5400+30"]

1. e4 {[%emt 0:00:02]} c5 {[%emt 0:00:04]} 2. Nf3 {[%emt 0:00:05]} d6 {[%emt 0:00:04]} 3. d4 {[%emt 0:00:13]} cxd4 {[%emt 0:00:04]} 4. Nxd4 {[%emt 0:00:04]} Nf6 {[%emt 0:00:04]} 5. Nc3 {[%emt 0:00:06]} a6 {[%emt 0:00:05]} 6. Be3 {[%emt 0:00:08]} Ng4 {[%emt 0:00:07]} 7. Bg5 {[%emt 0:01:55]} h6 {[%emt 0:00:06]} 8. Bh4 {[%emt 0:00:06]} g5 {[%emt 0:00:04]} 9. Bg3 {[%emt 0:00:12]} Bg7 {[%emt 0:00:04]} 10. Be2 {[%emt 0:04:38]} h5 {[%emt 0:00:28]} 11. h4 {[%emt 0:08:06]} gxh4 {[%emt 0:02:25]} 12. Bxh4 {[%emt 0:02:37]} Nc6 {[%emt 0:00:39]} 13. Nf5 {[%emt 0:19:55]} Bxf5 {[%emt 0:06:19]} 14. exf5 {[%emt 0:00:02]} Bxc3+ {[%emt 0:16:19]} 15. bxc3 {[%emt 0:00:03]} Qa5 16. Qd3 {[%emt 0:04:46]} Nce5 {[%emt 0:00:54]} 17. Qd2 {[%emt 0:07:22]} Rc8 {[%emt 0:00:50]} 18. Rh3 {[%emt 0:01:43]} f6 {[%emt 0:12:08]} 19. Kf1 {[%emt 0:03:43]} Rc5 {[%emt 0:04:45]} 20. Bg3 {[%emt 0:20:28]} Rxc3 {[%emt 0:07:02]} 21. Bxg4 {[%emt 0:01:13]} Nxg4 {[%emt 0:00:13]} 22. Re1 {[%emt 0:02:02]} Qb5+ {[%emt 0:19:20]} 23. Kg1 {[%emt 0:00:21]} Rc5 {[%emt 0:00:36]} 24. Bxd6 {[%emt 0:11:09]} Rd5 {[%emt 0:00:08]} 25. Rd3 {[%emt 0:03:24]} Rxd3 {[%emt 0:02:29]} 26. Rxe7+ {[%emt 0:00:01]} Kd8 {[%emt 0:00:12]} 27. cxd3 {[%emt 0:00:58]} Re8 {[%emt 0:00:24]} 28. Rxe8+ {[%emt 0:00:29]} Kxe8 {[%emt 0:00:04]} 29. Qe1+ {[%emt 0:00:07]} Kd7 {[%emt 0:01:08]} 30. Qe6+ {[%emt 0:00:08]} Kc6 {[%emt 0:00:04]} 31. Be5+ {[%emt 0:00:11]} 1-0

[Event "EYCC O18-ch 2024"]
[Site "Prague"]
[Date "2024.08.30"]
[Round "8.8"]
[White "Zlatkov, Anton"]
[Black "Bermudez Ureba, Juan Diego"]
[Result "0-1"]
[ECO "A13"]
[WhiteElo "2297"]
[BlackElo "2183"]
[Annotator "RC"]
[PlyCount "92"]
[EventDate "2024.08.19"]
[EventType "swiss"]
[EventCountry "CZE"]
[SourceTitle "playchess.com"]
[Source "ChessBase"]
[SourceQuality "1"]
[TimeControl "5400+30"]

1. c4 {[%emt 0:00:04]} e6 {[%emt 0:00:43]} 2. g3 {[%emt 0:00:11]} d5 {[%emt 0:00:09]} 3. Bg2 {[%emt 0:00:07]} dxc4 {[%emt 0:00:10]} 4. Qa4+ {[%emt 0:00:17]} Nd7 {[%emt 0:00:08]} 5. Qxc4 {[%emt 0:00:15]} c5 {[%emt 0:02:08]} 6. Qc2 {[%emt 0:02:39]} Rb8 {[%emt 0:06:55]} 7. Nc3 {[%emt 0:08:16]} b5 {[%emt 0:04:46]} 8. Nf3 {[%emt 0:02:11]} b4 {[%emt 0:02:23]} 9. Nd1 {[%emt 0:03:24]} a5 {[%emt 0:07:07]} 10. O-O {[%emt 0:01:12]} Bd6 {[%emt 0:07:01]} 11. Ne3 {[%emt 0:02:16]} Nb6 {[%emt 0:01:32]} 12. Nc4 {[%emt 0:15:50]} Nxc4 {[%emt 0:01:44]} 13. Qxc4 {[%emt 0:00:01]} Ne7 {[%emt 0:12:50]} 14. d4 {[%emt 0:04:48]} Qb6 {[%emt 0:04:50]} 15. dxc5 {[%emt 0:10:08]} Bxc5 {[%emt 0:01:01]} 16. Bf4 {[%emt 0:02:18]} Ba6 {[%emt 0:00:30]} 17. Qe4 {[%emt 0:00:07]} Bb7 {[%emt 0:05:25]} 18. Qe5 {[%emt 0:02:10]} O-O {[%emt 0:00:09]} 19. Qh5 {[%emt 0:02:42]} Rbc8 {[%emt 0:02:34]} 20. Rad1 {[%emt 0:04:23]} f6 {[%emt 0:03:17]} 21. Bh3 {[%emt 0:04:55]} Rcd8 {[%emt 0:04:20]} 22. Rxd8 {[%emt 0:08:09]} Rxd8 {[%emt 0:00:06]} 23. Bc1 {[%emt 0:03:32]} e5 {[%emt 0:10:01]} 24. Nd2 {[%emt 0:08:00]} Bxf2+ {[%emt 0:02:27]} 25. Rxf2 {[%emt 0:00:05]} Qc6 {[%emt 0:00:04]} 26. Rf1 {[%emt 0:00:44]} Qh1+ {[%emt 0:14:42]} 27. Kf2 {[%emt 0:00:00]} Qxh2+ {[%emt 0:00:01]} 28. Ke1 {[%emt 0:00:11]} Qxg3+ {[%emt 0:00:04]} 29. Kd1 {[%emt 0:00:09]} Nd5 {[%emt 0:00:07]} 30. Be6+ {[%emt 0:00:31]} Kh8 {[%emt 0:00:01]} 31. Bxd5 {[%emt 0:01:12]} Bxd5 {[%emt 0:00:01]} 32. b3 {[%emt 0:06:12]} a4 {[%emt 0:00:37]} 33. e4 {[%emt 0:01:53]} Bxe4 {[%emt 0:01:48]} 34. Qe2 {[%emt 0:00:36]} Bd5 {[%emt 0:01:28]} 35. Qe1 {[%emt 0:00:48]} Qc3 {[%emt 0:01:37]} 36. Ke2 {[%emt 0:00:53]} Qc2 {[%emt 0:01:45]} 37. Kf2 {[%emt 0:01:03]} Qxa2 {[%emt 0:00:52]} 38. Qe3 {[%emt 0:00:15]} Bxb3 39. Kg1 {[%emt 0:00:21]} Bg8 {[%emt 0:01:27]} 40. Ne4 {[%emt 0:01:28]} Rd4 {[%emt 0:00:49]} 41. Ng3 {[%emt 0:01:36]} Qd5 {[%emt 0:00:29]} 42. Rf2 {[%emt 0:00:46]} a3 {[%emt 0:00:30]} 43. Nf5 {[%emt 0:00:40]} Rd1+ {[%emt 0:00:10]} 44. Rf1 {[%emt 0:01:02]} Rxf1+ {[%emt 0:00:01]} 45. Kxf1 {[%emt 0:00:07]} Qd1+ {[%emt 0:00:14]} 46. Kg2 {[%emt 0:00:35]} Qc2+ {[%emt 0:00:05]} 0-1

[Event "EYCC O18-ch 2024"]
[Site "Prague"]
[Date "2024.08.30"]
[Round "8.9"]
[White "Talibov, Shiroghlan"]
[Black "Smolik, Jachym"]
[Result "1/2-1/2"]
[ECO "B12"]
[WhiteElo "2395"]
[BlackElo "2290"]
[Annotator "RC"]
[PlyCount "71"]
[EventDate "2024.08.19"]
[EventType "swiss"]
[EventCountry "CZE"]
[SourceTitle "playchess.com"]
[Source "ChessBase"]
[SourceQuality "1"]
[TimeControl "5400+30"]

1. e4 {[%emt 0:00:02]} c6 {[%emt 0:00:03]} 2. d4 {[%emt 0:00:04]} d5 {[%emt 0:00:05]} 3. e5 {[%emt 0:00:03]} Bf5 {[%emt 0:00:08]} 4. Be2 {[%emt 0:00:04]} e6 {[%emt 0:01:39]} 5. Nf3 {[%emt 0:00:16]} Nd7 {[%emt 0:00:57]} 6. O-O {[%emt 0:00:07]} h6 {[%emt 0:00:38]} 7. a4 {[%emt 0:00:46]} Ne7 {[%emt 0:00:49]} 8. a5 {[%emt 0:00:06]} a6 {[%emt 0:01:58]} 9. b4 {[%emt 0:00:06]} g5 {[%emt 0:05:07]} 10. Ne1 {[%emt 0:01:58]} Qc7 {[%emt 0:07:40]} 11. Na3 {[%emt 0:06:01]} Bg6 {[%emt 0:05:22]} 12. c3 {[%emt 0:02:53]} Bg7 {[%emt 0:00:18]} 13. f4 {[%emt 0:00:48]} f6 {[%emt 0:03:58]} 14. Bd3 {[%emt 0:05:55]} O-O-O {[%emt 0:07:48]} 15. Bxg6 {[%emt 0:16:09]} Nxg6 {[%emt 0:00:03]} 16. Nd3 {[%emt 0:00:04]} Rhg8 {[%emt 0:08:41]} 17. Qh5 {[%emt 0:04:54]} Nxf4 {[%emt 0:06:55]} 18. Bxf4 {[%emt 0:07:24]} gxf4 {[%emt 0:00:03]} 19. Nxf4 {[%emt 0:00:39]} Rde8 {[%emt 0:02:42]} 20. Qf7 {[%emt 0:01:56]} Ref8 {[%emt 0:07:53]} 21. Qxe6 {[%emt 0:10:49]} fxe5 {[%emt 0:00:30]} 22. Ng6 {[%emt 0:07:33]} Re8 {[%emt 0:00:02]} 23. Qf7 {[%emt 0:06:42]} Qd6 {[%emt 0:08:30]} 24. Rae1 {[%emt 0:01:36]} Qe6 {[%emt 0:05:34]} 25. Nc2 {[%emt 0:02:48]} Qxf7 {[%emt 0:06:02]} 26. Rxf7 {[%emt 0:00:01]} Bf6 {[%emt 0:01:29]} 27. dxe5 {[%emt 0:03:08]} Rxg6 {[%emt 0:00:56]} 28. exf6 {[%emt 0:00:01]} Rxe1+ {[%emt 0:00:46]} 29. Nxe1 {[%emt 0:00:02]} Nxf6 {[%emt 0:01:32]} 30. Rf8+ {[%emt 0:08:21]} Kc7 {[%emt 0:00:11]} 31. Rf7+ {[%emt 0:00:05]} Kc8 {[%emt 0:00:26]} 32. Nc2 {[%emt 0:01:47]} Ne4 {[%emt 0:00:30]} 33. Rf3 {[%emt 0:00:02]} Rf6 {[%emt 0:04:02]} 34. Re3 {[%emt 0:01:24]} Rf2 35. Rxe4 Rxc2 36. Re3 1/2-1/2

[Event "EYCC O18-ch 2024"]
[Site "Prague"]
[Date "2024.08.30"]
[Round "8.9"]
[White "Rudzkis, Vilius"]
[Black "Kreken, Eivind Grunt"]
[Result "1/2-1/2"]
[ECO "E73"]
[WhiteElo "1993"]
[BlackElo "2294"]
[Annotator "RC"]
[PlyCount "79"]
[EventDate "2024.08.19"]
[EventType "swiss"]
[EventCountry "CZE"]
[SourceTitle "playchess.com"]
[Source "ChessBase"]
[SourceQuality "1"]
[TimeControl "5400+30"]

1. d4 {[%emt 0:00:50]} Nf6 {[%emt 0:00:06]} 2. c4 {[%emt 0:00:12]} g6 {[%emt 0:00:31]} 3. Nc3 {[%emt 0:00:25]} Bg7 {[%emt 0:00:21]} 4. e4 {[%emt 0:00:46]} d6 {[%emt 0:01:33]} 5. Be2 {[%emt 0:00:28]} O-O {[%emt 0:00:08]} 6. Bg5 {[%emt 0:01:28]} c5 {[%emt 0:00:23]} 7. d5 {[%emt 0:00:36]} h6 {[%emt 0:00:32]} 8. Bf4 {[%emt 0:00:18]} e6 {[%emt 0:00:44]} 9. Qc1 {[%emt 0:09:01]} exd5 {[%emt 0:04:09]} 10. exd5 {[%emt 0:01:26]} Kh7 {[%emt 0:06:52]} 11. Nf3 {[%emt 0:01:06]} Re8 {[%emt 0:06:15]} 12. O-O {[%emt 0:04:03]} Ne4 {[%emt 0:17:10]} 13. Nxe4 {[%emt 0:13:16]} Rxe4 {[%emt 0:00:19]} 14. Be3 {[%emt 0:00:25]} Qf6 {[%emt 0:05:00]} 15. Rb1 {[%emt 0:05:13]} Na6 {[%emt 0:04:38]} 16. Bg5 {[%emt 0:05:16]} Qf5 {[%emt 0:04:04]} 17. Bd3 {[%emt 0:02:15]} Nb4 {[%emt 0:00:41]} 18. Bxe4 {[%emt 0:01:34]} Qxe4 {[%emt 0:00:07]} 19. Re1 {[%emt 0:13:44]} Qf5 {[%emt 0:01:17]} 20. Be7 {[%emt 0:01:01]} Nd3 {[%emt 0:02:18]} 21. Qd2 {[%emt 0:06:05]} Nxe1 {[%emt 0:01:11]} 22. Rxe1 {[%emt 0:00:05]} b5 {[%emt 0:01:24]} 23. cxb5 {[%emt 0:04:24]} Bb7 {[%emt 0:01:40]} 24. Bxd6 {[%emt 0:03:39]} Bxd5 {[%emt 0:09:25]} 25. Be5 {[%emt 0:02:01]} Rd8 {[%emt 0:11:52]} 26. Bxg7 {[%emt 0:00:47]} Kxg7 {[%emt 0:00:07]} 27. Qc3+ {[%emt 0:03:45]} Kh7 {[%emt 0:00:48]} 28. Qxc5 {[%emt 0:01:33]} Rc8 {[%emt 0:05:55]} 29. Qd4 {[%emt 0:01:23]} Bxf3 {[%emt 0:02:25]} 30. gxf3 {[%emt 0:00:11]} Qxb5 {[%emt 0:02:40]} 31. Qxa7 {[%emt 0:03:45]} Qd5 {[%emt 0:00:02]} 32. Qe3 {[%emt 0:03:16]} Qxa2 {[%emt 0:00:31]} 33. Qd4 {[%emt 0:00:59]} Rb8 {[%emt 0:02:58]} 34. Re7 {[%emt 0:02:02]} Qb1+ {[%emt 0:01:29]} 35. Kg2 {[%emt 0:00:09]} Qf5 {[%emt 0:00:14]} 36. h4 {[%emt 0:04:18]} h5 {[%emt 0:01:57]} 37. Qd7 {[%emt 0:01:56]} Qxd7 {[%emt 0:00:43]} 38. Rxd7 {[%emt 0:00:07]} Kg7 {[%emt 0:00:47]} 39. Rd2 {[%emt 0:00:43]} Rb3 {[%emt 0:00:40]} 40. Kg3 {[%emt 0:00:24]} 1/2-1/2

[Event "EYCC O18-ch 2024"]
[Site "Prague"]
[Date "2024.08.30"]
[Round "8.10"]
[White "Eilenberg, Jonas"]
[Black "Bakija, Alan"]
[Result "1/2-1/2"]
[ECO "C50"]
[WhiteElo "2285"]
[BlackElo "2171"]
[Annotator "RC"]
[PlyCount "89"]
[EventDate "2024.08.19"]
[EventType "swiss"]
[EventCountry "CZE"]
[SourceTitle "playchess.com"]
[Source "ChessBase"]
[SourceQuality "1"]
[TimeControl "5400+30"]

1. e4 {[%emt 0:00:03]} e5 {[%emt 0:00:08]} 2. Nf3 {[%emt 0:00:06]} Nc6 {[%emt 0:00:04]} 3. Bc4 {[%emt 0:00:11]} Bc5 {[%emt 0:00:08]} 4. d3 {[%emt 0:00:09]} Nf6 {[%emt 0:00:08]} 5. Bg5 {[%emt 0:00:20]} h6 {[%emt 0:00:07]} 6. Bh4 {[%emt 0:00:05]} Be7 {[%emt 0:00:08]} 7. Bg3 {[%emt 0:00:10]} d6 {[%emt 0:00:05]} 8. a4 {[%emt 0:00:04]} O-O {[%emt 0:00:30]} 9. h3 {[%emt 0:00:05]} Kh8 {[%emt 0:01:36]} 10. a5 {[%emt 0:03:28]} a6 {[%emt 0:00:21]} 11. O-O {[%emt 0:02:10]} Nh7 {[%emt 0:00:23]} 12. Nc3 {[%emt 0:00:52]} f5 {[%emt 0:01:16]} 13. exf5 {[%emt 0:00:01]} Bxf5 {[%emt 0:00:22]} 14. Nd5 {[%emt 0:00:13]} Nf6 {[%emt 0:08:14]} 15. Re1 {[%emt 0:04:43]} Qd7 {[%emt 0:01:22]} 16. c3 {[%emt 0:03:20]} Rae8 {[%emt 0:01:57]} 17. b4 {[%emt 0:17:08]} Bh7 {[%emt 0:12:13]} 18. Ra2 {[%emt 0:09:26]} e4 {[%emt 0:01:58]} 19. dxe4 {[%emt 0:00:06]} Nxe4 {[%emt 0:01:05]} 20. Rae2 {[%emt 0:00:44]} Nxg3 {[%emt 0:08:31]} 21. fxg3 {[%emt 0:00:49]} Bd8 {[%emt 0:00:38]} 22. Nf4 {[%emt 0:06:08]} Rxe2 {[%emt 0:00:21]} 23. Rxe2 {[%emt 0:02:08]} Bf6 {[%emt 0:06:28]} 24. Ne6 {[%emt 0:15:55]} Rb8 {[%emt 0:00:24]} 25. Nc5 {[%emt 0:05:07]} Qd8 {[%emt 0:05:00]} 26. Ne6 {[%emt 0:00:04]} Qd7 {[%emt 0:00:03]} 27. Qd2 {[%emt 0:05:51]} Bg6 {[%emt 0:12:29]} 28. g4 {[%emt 0:02:05]} Re8 {[%emt 0:03:29]} 29. Re3 {[%emt 0:05:47]} Nd8 {[%emt 0:05:02]} 30. Nc5 {[%emt 0:04:36]} Qc8 {[%emt 0:00:15]} 31. Rxe8+ {[%emt 0:00:14]} Bxe8 {[%emt 0:00:05]} 32. Ne4 {[%emt 0:00:04]} Be7 {[%emt 0:00:49]} 33. g5 {[%emt 0:01:33]} Qf5 {[%emt 0:01:12]} 34. Bd3 {[%emt 0:02:15]} Qf8 {[%emt 0:02:15]} 35. gxh6 {[%emt 0:00:40]} gxh6 {[%emt 0:00:02]} 36. Qe3 {[%emt 0:01:52]} Bg6 {[%emt 0:10:46]} 37. Qd4+ {[%emt 0:02:12]} Qg7 {[%emt 0:00:21]} 38. Qe3 {[%emt 0:00:53]} Nc6 {[%emt 0:00:38]} 39. Nf2 {[%emt 0:01:46]} Bxd3 {[%emt 0:05:22]} 40. Qxd3 {[%emt 0:00:17]} Bf6 {[%emt 0:00:48]} 41. Ne4 {[%emt 0:00:44]} Ne5 {[%emt 0:00:52]} 42. Qe2 {[%emt 0:01:34]} Nxf3+ {[%emt 0:01:35]} 43. Qxf3 {[%emt 0:00:01]} Be5 {[%emt 0:00:09]} 44. c4 {[%emt 0:00:06]} Qg8 {[%emt 0:01:22]} 45. Qf1 {[%emt 0:02:38]} 1/2-1/2

[Event "EYCC O18-ch 2024"]
[Site "Prague"]
[Date "2024.08.30"]
[Round "8.10"]
[White "Kusiak, Mateusz"]
[Black "Belkaid, Sohan"]
[Result "0-1"]
[ECO "B22"]
[WhiteElo "1887"]
[BlackElo "2384"]
[Annotator "RC"]
[PlyCount "168"]
[EventDate "2024.08.19"]
[EventType "swiss"]
[EventCountry "CZE"]
[SourceTitle "playchess.com"]
[Source "ChessBase"]
[SourceQuality "1"]
[TimeControl "5400+30"]

1. e4 {[%emt 0:02:13]} c5 {[%emt 0:00:13]} 2. c3 {[%emt 0:00:20]} d5 {[%emt 0:05:09]} 3. exd5 {[%emt 0:00:05]} Qxd5 {[%emt 0:00:05]} 4. d4 {[%emt 0:00:05]} Nc6 {[%emt 0:00:10]} 5. Nf3 {[%emt 0:00:05]} Bg4 {[%emt 0:00:10]} 6. dxc5 {[%emt 0:02:35]} Qxd1+ {[%emt 0:01:21]} 7. Kxd1 {[%emt 0:00:06]} O-O-O+ {[%emt 0:00:09]} 8. Bd2 {[%emt 0:02:19]} Nf6 {[%emt 0:03:52]} 9. Kc1 {[%emt 0:02:22]} Ne4 {[%emt 0:27:37]} 10. Be3 {[%emt 0:00:20]} e6 {[%emt 0:01:10]} 11. b4 {[%emt 0:02:42]} Be7 {[%emt 0:01:20]} 12. a4 {[%emt 0:27:42]} a5 {[%emt 0:16:27]} 13. Bb5 {[%emt 0:02:57]} Bf6 {[%emt 0:00:43]} 14. Bxc6 {[%emt 0:18:24]} Nxc3 {[%emt 0:10:37]} 15. Nxc3 {[%emt 0:03:09]} bxc6 {[%emt 0:01:02]} 16. Kc2 {[%emt 0:03:16]} axb4 {[%emt 0:12:00]} 17. Ne2 {[%emt 0:00:09]} Bxa1 {[%emt 0:06:03]} 18. Rxa1 {[%emt 0:00:04]} f6 {[%emt 0:00:16]} 19. Ned4 {[%emt 0:03:03]} Bf5+ {[%emt 0:01:40]} 20. Kb3 {[%emt 0:00:46]} Be4 {[%emt 0:00:25]} 21. Kxb4 {[%emt 0:03:45]} e5 {[%emt 0:00:47]} 22. Ne2 {[%emt 0:00:02]} Kc7 {[%emt 0:00:48]} 23. Nd2 {[%emt 0:06:53]} Bd3 {[%emt 0:03:01]} 24. Nc1 {[%emt 0:00:15]} Ba6 {[%emt 0:00:57]} 25. Kc3 {[%emt 0:01:08]} Rd5 {[%emt 0:02:26]} 26. Rb1 {[%emt 0:01:27]} Ra8 {[%emt 0:00:58]} 27. Rb4 {[%emt 0:00:53]} f5 {[%emt 0:01:26]} 28. f4 {[%emt 0:02:18]} Rad8 {[%emt 0:00:25]} 29. Rb6 {[%emt 0:01:05]} Be2 {[%emt 0:00:33]} 30. Rb2 {[%emt 0:03:52]} Rd3+ {[%emt 0:00:32]} 31. Nxd3 {[%emt 0:00:10]} Rxd3+ {[%emt 0:00:04]} 32. Kb4 {[%emt 0:00:39]} Rxe3 {[%emt 0:00:04]} 33. fxe5 {[%emt 0:00:32]} Rxe5 {[%emt 0:01:03]} 34. Rb1 {[%emt 0:00:37]} g5 {[%emt 0:00:48]} 35. Re1 {[%emt 0:00:38]} f4 {[%emt 0:00:17]} 36. Nb3 {[%emt 0:02:27]} g4 {[%emt 0:01:15]} 37. Nc1 {[%emt 0:03:29]} f3 {[%emt 0:00:12]} 38. gxf3 {[%emt 0:00:04]} gxf3 {[%emt 0:00:09]} 39. Nxe2 {[%emt 0:00:08]} fxe2 {[%emt 0:01:09]} 40. Kc4 {[%emt 0:00:07]} Kb7 {[%emt 0:00:50]} 41. Kd4 {[%emt 0:02:37]} Re7 {[%emt 0:00:26]} 42. h4 {[%emt 0:00:20]} Ka6 {[%emt 0:01:06]} 43. h5 {[%emt 0:00:30]} Ka5 {[%emt 0:00:40]} 44. Kc4 {[%emt 0:00:25]} h6 {[%emt 0:01:19]} 45. Kd3 {[%emt 0:00:42]} Kxa4 {[%emt 0:00:18]} 46. Kc4 {[%emt 0:00:23]} Ka3 {[%emt 0:00:36]} 47. Kc3 {[%emt 0:00:09]} Ka2 {[%emt 0:00:24]} 48. Kc2 {[%emt 0:00:27]} Re5 {[%emt 0:00:39]} 49. Kd2 {[%emt 0:01:35]} Kb3 {[%emt 0:00:33]} 50. Kd3 {[%emt 0:00:07]} Kb4 {[%emt 0:00:44]} 51. Kd4 {[%emt 0:00:10]} Re8 {[%emt 0:00:22]} 52. Rb1+ {[%emt 0:00:06]} Ka3 {[%emt 0:00:13]} 53. Re1 {[%emt 0:00:08]} Kb2 {[%emt 0:00:49]} 54. Kd3 {[%emt 0:00:05]} Rd8+ {[%emt 0:00:32]} 55. Ke3 {[%emt 0:00:52]} Re8+ {[%emt 0:00:08]} 56. Kd3 {[%emt 0:00:11]} Re7 {[%emt 0:00:40]} 57. Kd2 {[%emt 0:00:14]} Kb3 {[%emt 0:00:32]} 58. Kd3 {[%emt 0:00:05]} Kb4 {[%emt 0:00:30]} 59. Kd4 {[%emt 0:00:06]} Rd7+ {[%emt 0:00:14]} 60. Ke3 {[%emt 0:00:05]} Rd5 {[%emt 0:00:35]} 61. Rb1+ {[%emt 0:01:08]} Kxc5 {[%emt 0:00:07]} 62. Kxe2 {[%emt 0:00:17]} Rxh5 {[%emt 0:00:03]} 63. Kd3 {[%emt 0:00:22]} Rh3+ {[%emt 0:00:16]} 64. Kc2 {[%emt 0:00:06]} Kc4 {[%emt 0:00:07]} 65. Rg1 {[%emt 0:00:06]} Rh2+ {[%emt 0:00:09]} 66. Kc1 {[%emt 0:00:05]} c5 {[%emt 0:00:17]} 67. Rg4+ {[%emt 0:00:04]} Kb3 {[%emt 0:00:11]} 68. Rg3+ {[%emt 0:00:04]} Kb4 {[%emt 0:00:05]} 69. Rg4+ {[%emt 0:00:05]} c4 {[%emt 0:00:10]} 70. Rg3 {[%emt 0:00:02]} h5 {[%emt 0:00:07]} 71. Rf3 {[%emt 0:00:03]} h4 {[%emt 0:00:06]} 72. Re3 {[%emt 0:00:42]} h3 {[%emt 0:00:08]} 73. Kb1 {[%emt 0:01:05]} Rh1+ {[%emt 0:00:07]} 74. Ka2 {[%emt 0:00:16]} h2 {[%emt 0:00:48]} 75. Re2 {[%emt 0:00:24]} Kc3 {[%emt 0:00:38]} 76. Re3+ {[%emt 0:00:41]} Kd2 {[%emt 0:00:12]} 77. Rh3 {[%emt 0:00:04]} c3 {[%emt 0:00:08]} 78. Rh8 {[%emt 0:00:13]} c2 {[%emt 0:00:12]} 79. Rd8+ {[%emt 0:00:03]} Ke3 {[%emt 0:00:10]} 80. Rc8 {[%emt 0:00:37]} c1=Q {[%emt 0:00:35]} 81. Rc3+ {[%emt 0:00:04]} Kd4 {[%emt 0:00:16]} 82. Rc4+ {[%emt 0:00:06]} Qxc4+ {[%emt 0:00:05]} 83. Kb2 {[%emt 0:00:06]} Qc3+ {[%emt 0:00:07]} 84. Ka2 {[%emt 0:00:03]} Ra1# {[%emt 0:00:38]} 0-1

[Event "EYCC O18-ch 2024"]
[Site "Prague"]
[Date "2024.08.30"]
[Round "8.11"]
[White "Gasparyan, Erik R."]
[Black "Farokhi, Keyvan"]
[Result "1-0"]
[ECO "D41"]
[WhiteElo "2350"]
[BlackElo "2307"]
[Annotator "RC"]
[PlyCount "141"]
[EventDate "2024.08.19"]
[EventType "swiss"]
[EventCountry "CZE"]
[SourceTitle "playchess.com"]
[Source "ChessBase"]
[SourceQuality "1"]
[TimeControl "5400+30"]

1. d4 {[%emt 0:00:04]} Nf6 {[%emt 0:00:04]} 2. c4 {[%emt 0:00:41]} e6 {[%emt 0:00:05]} 3. Nf3 {[%emt 0:00:18]} d5 {[%emt 0:00:06]} 4. Nc3 {[%emt 0:00:06]} c5 {[%emt 0:00:34]} 5. cxd5 {[%emt 0:00:44]} cxd4 {[%emt 0:00:05]} 6. Qxd4 {[%emt 0:02:16]} exd5 {[%emt 0:00:12]} 7. Bg5 {[%emt 0:00:06]} Be7 {[%emt 0:00:10]} 8. e3 {[%emt 0:00:04]} Nc6 {[%emt 0:00:14]} 9. Qd3 {[%emt 0:00:06]} O-O {[%emt 0:00:32]} 10. Be2 {[%emt 0:00:05]} h6 {[%emt 0:00:09]} 11. Bh4 {[%emt 0:01:18]} Be6 {[%emt 0:00:10]} 12. O-O {[%emt 0:00:05]} Qb6 {[%emt 0:01:22]} 13. Bxf6 {[%emt 0:01:54]} Bxf6 {[%emt 0:00:08]} 14. Nxd5 {[%emt 0:00:04]} Bxd5 {[%emt 0:03:23]} 15. Qxd5 {[%emt 0:00:23]} Qxb2 {[%emt 0:06:15]} 16. Bc4 {[%emt 0:00:06]} Rad8 {[%emt 0:04:48]} 17. Qf5 {[%emt 0:02:24]} Qb4 {[%emt 0:06:24]} 18. Rac1 {[%emt 0:00:34]} Qa5 {[%emt 0:00:35]} 19. Qb1 {[%emt 0:00:07]} Qb6 {[%emt 0:06:10]} 20. Qxb6 {[%emt 0:05:15]} axb6 {[%emt 0:00:02]} 21. Rfd1 {[%emt 0:40:17]} Rxd1+ {[%emt 0:15:46]} 22. Rxd1 {[%emt 0:00:18]} Rd8 {[%emt 0:00:06]} 23. Rxd8+ {[%emt 0:05:41]} Bxd8 {[%emt 0:00:55]} 24. Kf1 {[%emt 0:00:22]} Kf8 {[%emt 0:01:04]} 25. Ke2 {[%emt 0:00:07]} Bc7 {[%emt 0:00:33]} 26. Bb3 {[%emt 0:02:50]} Ke7 {[%emt 0:02:03]} 27. g3 {[%emt 0:00:18]} Bd6 {[%emt 0:05:30]} 28. Nd2 {[%emt 0:01:47]} Bb4 {[%emt 0:03:52]} 29. Bd5 {[%emt 0:05:16]} f6 {[%emt 0:02:29]} 30. Nf3 {[%emt 0:02:51]} Kd6 {[%emt 0:08:13]} 31. Bb3 {[%emt 0:00:21]} g5 {[%emt 0:03:38]} 32. h3 {[%emt 0:01:14]} Ke7 {[%emt 0:03:28]} 33. Nd2 {[%emt 0:02:14]} Bc5 {[%emt 0:08:32]} 34. g4 {[%emt 0:02:40]} Na7 {[%emt 0:03:32]} 35. Bd5 {[%emt 0:08:33]} Nb5 {[%emt 0:01:56]} 36. Ne4 {[%emt 0:03:06]} Bb4 {[%emt 0:03:44]} 37. Kd3 {[%emt 0:00:48]} Nd6 {[%emt 0:00:06]} 38. Nc3 {[%emt 0:00:16]} Ba5 {[%emt 0:00:53]} 39. f3 {[%emt 0:01:47]} Bb4 {[%emt 0:01:17]} 40. Bb3 {[%emt 0:03:48]} Bxc3 {[%emt 0:00:21]} 41. Kxc3 {[%emt 0:00:04]} Nc8 {[%emt 0:00:13]} 42. Bd5 {[%emt 0:01:43]} Kd6 {[%emt 0:02:40]} 43. Bxb7 Ne7 {[%emt 0:00:04]} 44. Kd4 {[%emt 0:00:42]} Ke6 {[%emt 0:00:39]} 45. Be4 {[%emt 0:01:44]} Kd6 {[%emt 0:00:25]} 46. Bd3 {[%emt 0:00:06]} Nc6+ {[%emt 0:03:21]} 47. Ke4 Ne7 {[%emt 0:00:04]} 48. Bc4 {[%emt 0:01:01]} Kc5 {[%emt 0:00:19]} 49. Bb3 {[%emt 0:00:04]} Kd6 {[%emt 0:00:52]} 50. f4 {[%emt 0:01:44]} Kc5 {[%emt 0:02:45]} 51. Bf7 {[%emt 0:00:14]} Kd6 {[%emt 0:00:13]} 52. Kf3 {[%emt 0:00:26]} Nc8 {[%emt 0:01:04]} 53. Kg3 {[%emt 0:00:50]} Ke7 {[%emt 0:00:15]} 54. Bd5 {[%emt 0:00:22]} Nd6 {[%emt 0:00:05]} 55. h4 {[%emt 0:00:33]} Nb5 {[%emt 0:00:25]} 56. hxg5 {[%emt 0:01:25]} hxg5 {[%emt 0:00:33]} 57. Kf3 {[%emt 0:02:01]} Nc3 {[%emt 0:00:57]} 58. Bb3 {[%emt 0:00:22]} Kd6 {[%emt 0:02:44]} 59. e4 {[%emt 0:00:33]} Ke7 {[%emt 0:00:23]} 60. fxg5 {[%emt 0:01:45]} fxg5 {[%emt 0:00:06]} 61. e5 {[%emt 0:00:10]} b5 {[%emt 0:02:29]} 62. Ke3 {[%emt 0:00:04]} b4 {[%emt 0:00:30]} 63. Kd3 {[%emt 0:00:11]} Nb1 {[%emt 0:00:31]} 64. Kc4 {[%emt 0:03:16]} Nd2+ {[%emt 0:00:04]} 65. Kxb4 {[%emt 0:00:03]} Nf3 {[%emt 0:00:10]} 66. e6 {[%emt 0:00:03]} Ne5 {[%emt 0:00:13]} 67. a4 {[%emt 0:00:04]} Nxg4 {[%emt 0:00:08]} 68. a5 {[%emt 0:00:03]} Kd6 {[%emt 0:00:49]} 69. Kb5 {[%emt 0:01:51]} Kc7 {[%emt 0:00:05]} 70. e7 {[%emt 0:00:17]} Nf6 {[%emt 0:00:27]} 71. Bf7 {[%emt 0:00:05]} 1-0